[Event "ROU-chT Women Superliga 2018"]
[Site "Sovata"]
[Date "2018.11.25"]
[Round "1"]
[White "Stanciu, Andreea-Briana"]
[Black "Aciu, Malina-Andreea"]
[Result "1/2-1/2"]
[ECO "B52"]
[WhiteElo "1953"]
[BlackElo "1976"]
[Annotator "NA"]
[PlyCount "49"]
[EventDate "2018.11.24"]
[EventType "team-tourn"]
[EventCountry "ROU"]
[SourceTitle "playchess.com"]
[Source "ChessBase"]
[SourceQuality "1"]
[TimeControl "40/5400+30:1800+30"]

1. e4 {[%emt 0:00:14]} c5 {[%emt 0:00:00]} 2. Nf3 {[%emt 0:00:05]} d6 {[%emt 0:00:00]} 3. Bb5+ {[%emt 0:02:21]} Bd7 {[%emt 0:04:40]} 4. Bxd7+ {[%emt 0:02:02]} Qxd7 {[%emt 0:01:39]} 5. c3 {[%emt 0:02:23]} Nc6 {[%emt 0:06:33]} 6. O-O {[%emt 0:05:31]} Nf6 {[%emt 0:03:19]} 7. Re1 {[%emt 0:03:01]} e6 {[%emt 0:06:38]} 8. d4 {[%emt 0:07:24]} cxd4 9. cxd4 {[%emt 0:00:19]} d5 {[%emt 0:15:57]} 10. e5 {[%emt 0:05:22]} Ne4 {[%emt 0:01:55]} 11. Nbd2 {[%emt 0:02:33]} Nxd2 {[%emt 0:00:30]} 12. Bxd2 {[%emt 0:00:30]} Be7 {[%emt 0:00:30]} 13. Bg5 {[%emt 0:00:30]} O-O {[%emt 0:00:30]} 14. Bxe7 {[%emt 0:11:38]} Nxe7 {[%emt 0:20:17]} 15. Qd2 {[%emt 0:04:01]} Nf5 {[%emt 0:04:21]} 16. Rac1 {[%emt 0:02:45]} Rac8 {[%emt 0:03:41]} 17. Rxc8 {[%emt 0:01:41]} Rxc8 {[%emt 0:00:44]} 18. Rc1 {[%emt 0:00:10]} Rxc1+ {[%emt 0:03:59]} 19. Qxc1 {[%emt 0:00:04]} Ne7 {[%emt 0:01:22]} 20. b3 {[%emt 0:01:52]} Nc6 {[%emt 0:01:27]} 21. Qd2 {[%emt 0:02:35]} h6 {[%emt 0:00:54]} 22. h3 {[%emt 0:00:47]} Qc7 {[%emt 0:02:10]} 23. Qc3 {[%emt 0:00:50]} Qa5 {[%emt 0:02:59]} 24. Qxa5 {[%emt 0:01:03]} Nxa5 {[%emt 0:00:07]} 25. Kf1 {[%emt 0:00:17]} 1/2-1/2

[Event "ROU-chT Women Superliga 2018"]
[Site "Sovata"]
[Date "2018.11.25"]
[Round "1"]
[White "Panainte, Andreea-Bianca"]
[Black "Lehaci, Miruna-Daria"]
[Result "0-1"]
[ECO "B22"]
[WhiteElo "1946"]
[BlackElo "2067"]
[Annotator "NA"]
[PlyCount "56"]
[EventDate "2018.11.24"]
[EventType "team-tourn"]
[EventCountry "ROU"]
[SourceTitle "playchess.com"]
[Source "ChessBase"]
[SourceQuality "1"]
[TimeControl "40/5400+30:1800+30"]

1. e4 {[%emt 0:00:00]} c5 {[%emt 0:00:00]} 2. c3 {[%emt 0:00:00]} Nf6 {[%emt 0:00:00]} 3. e5 {[%emt 0:00:00]} Nd5 {[%emt 0:00:00]} 4. d4 {[%emt 0:00:00]} cxd4 {[%emt 0:00:00]} 5. Bc4 {[%emt 0:00:00]} Nb6 {[%emt 0:00:00]} 6. Bb3 {[%emt 0:00:05]} Nc6 {[%emt 0:00:07]} 7. Nf3 {[%emt 0:00:07]} d5 {[%emt 0:00:08]} 8. exd6 {[%emt 0:00:06]} Qxd6 {[%emt 0:00:04]} 9. cxd4 {[%emt 0:09:37]} Be6 {[%emt 0:02:47]} 10. Be3 {[%emt 0:06:25]} Bxb3 {[%emt 0:02:39]} 11. Qxb3 {[%emt 0:01:11]} Qb4+ {[%emt 0:06:12]} 12. Nbd2 {[%emt 0:04:42]} e6 {[%emt 0:01:34]} 13. O-O {[%emt 0:08:07]} Nd5 {[%emt 0:06:14]} 14. a3 {[%emt 0:07:54]} Qxb3 15. Nxb3 {[%emt 0:00:06]} Be7 {[%emt 0:10:58]} 16. Rac1 {[%emt 0:08:23]} O-O {[%emt 0:05:46]} 17. Nc5 {[%emt 0:01:44]} Nd8 {[%emt 0:10:00]} 18. Nd7 {[%emt 0:07:42]} Re8 {[%emt 0:00:13]} 19. Nfe5 {[%emt 0:00:48]} f6 {[%emt 0:00:43]} 20. Nd3 {[%emt 0:00:20]} b6 {[%emt 0:02:03]} 21. Nf4 {[%emt 0:18:31]} Bd6 {[%emt 0:02:02]} 22. Nd3 {[%emt 0:23:47]} Re7 {[%emt 0:03:04]} 23. N7c5 {[%emt 0:00:26]} bxc5 {[%emt 0:00:19]} 24. dxc5 {[%emt 0:00:03]} Bc7 {[%emt 0:00:08]} 25. b4 {[%emt 0:00:06]} Rb8 {[%emt 0:00:38]} 26. Rb1 {[%emt 0:00:55]} a6 {[%emt 0:00:25]} 27. Rfc1 {[%emt 0:00:13]} Nc6 {[%emt 0:00:19]} 28. Bd2 {[%emt 0:00:12]} e5 {[%emt 0:00:28]} 0-1

[Event "ROU-chT Women Superliga 2018"]
[Site "Sovata"]
[Date "2018.11.25"]
[Round "1"]
[White "Firaru, Roxana-Maria"]
[Black "Rata, Anamaria"]
[Result "1-0"]
[ECO "B90"]
[WhiteElo "1943"]
[BlackElo "1780"]
[Annotator "NA"]
[PlyCount "63"]
[EventDate "2018.11.24"]
[EventType "team-tourn"]
[EventCountry "ROU"]
[SourceTitle "playchess.com"]
[Source "ChessBase"]
[SourceQuality "1"]
[TimeControl "40/5400+30:1800+30"]

1. e4 {[%emt 0:00:00]} c5 {[%emt 0:00:00]} 2. Nf3 {[%emt 0:00:06]} d6 {[%emt 0:00:00]} 3. d4 {[%emt 0:00:34]} cxd4 {[%emt 0:00:00]} 4. Nxd4 {[%emt 0:00:07]} Nf6 {[%emt 0:00:00]} 5. Nc3 {[%emt 0:01:05]} a6 {[%emt 0:00:07]} 6. Be3 {[%emt 0:02:01]} e6 {[%emt 0:00:13]} 7. f3 {[%emt 0:00:46]} b5 {[%emt 0:00:14]} 8. Qd2 {[%emt 0:02:19]} Nbd7 {[%emt 0:00:11]} 9. g4 {[%emt 0:00:58]} Nb6 {[%emt 0:00:15]} 10. a4 {[%emt 0:03:46]} b4 {[%emt 0:23:40]} 11. Na2 {[%emt 0:29:05]} d5 {[%emt 0:23:56]} 12. g5 {[%emt 0:07:54]} Nfd7 {[%emt 0:03:09]} 13. Nxb4 {[%emt 0:18:15]} Ne5 {[%emt 0:20:24]} 14. b3 Bb7 15. a5 {[%emt 0:16:26]} Bc5 {[%emt 0:22:37]} 16. Be2 {[%emt 0:05:12]} dxe4 {[%emt 0:02:28]} 17. f4 {[%emt 0:03:58]} Bxd4 {[%emt 0:00:41]} 18. Qxd4 {[%emt 0:02:01]} Qxd4 {[%emt 0:00:28]} 19. Bxd4 {[%emt 0:00:02]} Nf3+ {[%emt 0:00:26]} 20. Bxf3 {[%emt 0:00:15]} exf3 {[%emt 0:00:07]} 21. Bxb6 {[%emt 0:00:16]} f2+ {[%emt 0:00:12]} 22. Kxf2 {[%emt 0:00:04]} Bxh1 {[%emt 0:00:07]} 23. Rxh1 {[%emt 0:00:04]} O-O {[%emt 0:00:34]} 24. Rd1 {[%emt 0:00:23]} f6 {[%emt 0:01:28]} 25. gxf6 {[%emt 0:00:40]} Rxf6 {[%emt 0:00:10]} 26. Ke3 {[%emt 0:01:06]} Rh6 {[%emt 0:00:55]} 27. Rd2 {[%emt 0:01:01]} Re8 {[%emt 0:00:35]} 28. Nxa6 {[%emt 0:02:44]} e5 {[%emt 0:00:26]} 29. fxe5 {[%emt 0:00:51]} Rxe5+ {[%emt 0:00:09]} 30. Kd4 {[%emt 0:02:01]} Re7 {[%emt 0:00:36]} 31. Kc3 {[%emt 0:00:15]} Rh3+ {[%emt 0:00:32]} 32. Kb2 {[%emt 0:00:08]} 1-0

[Event "ROU-chT Women Superliga 2018"]
[Site "Sovata"]
[Date "2018.11.25"]
[Round "1"]
[White "Pelin, Ana-Maria"]
[Black "Nastase, Andreea-Cristina"]
[Result "0-1"]
[ECO "D30"]
[WhiteElo "1751"]
[BlackElo "1900"]
[Annotator "NA"]
[PlyCount "148"]
[EventDate "2018.11.24"]
[EventType "team-tourn"]
[EventCountry "ROU"]
[SourceTitle "playchess.com"]
[Source "ChessBase"]
[SourceQuality "1"]
[TimeControl "40/5400+30:1800+30"]

1. d4 {[%emt 0:00:00]} d5 {[%emt 0:00:00]} 2. c4 {[%emt 0:00:00]} c6 {[%emt 0:00:00]} 3. Nf3 {[%emt 0:00:21]} Nf6 {[%emt 0:00:00]} 4. e3 {[%emt 0:00:34]} e6 {[%emt 0:00:00]} 5. Nbd2 {[%emt 0:00:30]} Nbd7 {[%emt 0:00:20]} 6. Bd3 {[%emt 0:00:36]} Bd6 {[%emt 0:00:49]} 7. e4 {[%emt 0:00:25]} dxe4 {[%emt 0:03:33]} 8. Nxe4 {[%emt 0:00:08]} Bb4+ {[%emt 0:02:04]} 9. Bd2 {[%emt 0:03:34]} Bxd2+ {[%emt 0:00:15]} 10. Qxd2 {[%emt 0:00:21]} Nxe4 {[%emt 0:01:51]} 11. Bxe4 {[%emt 0:00:06]} Nf6 {[%emt 0:00:03]} 12. Bc2 {[%emt 0:00:17]} O-O {[%emt 0:00:40]} 13. O-O {[%emt 0:00:25]} b6 {[%emt 0:03:41]} 14. Ne5 {[%emt 0:13:10]} c5 {[%emt 0:02:22]} 15. Rad1 {[%emt 0:10:36]} Qxd4 {[%emt 0:06:16]} 16. Qxd4 {[%emt 0:00:08]} cxd4 {[%emt 0:00:03]} 17. Rxd4 {[%emt 0:00:04]} Bb7 {[%emt 0:00:32]} 18. Rfd1 {[%emt 0:00:06]} g6 {[%emt 0:03:30]} 19. g4 {[%emt 0:07:46]} Rac8 {[%emt 0:05:23]} 20. g5 {[%emt 0:02:27]} Nh5 {[%emt 0:14:36]} 21. Nd7 {[%emt 0:14:44]} Rfe8 {[%emt 0:00:16]} 22. f4 {[%emt 0:07:07]} Kg7 {[%emt 0:09:35]} 23. Ne5 {[%emt 0:00:56]} Re7 {[%emt 0:01:35]} 24. Rd7 {[%emt 0:19:27]} Rc7 {[%emt 0:00:14]} 25. Rxe7 {[%emt 0:00:04]} Rxe7 {[%emt 0:00:03]} 26. Rd4 {[%emt 0:00:07]} f6 {[%emt 0:02:06]} 27. gxf6+ {[%emt 0:01:19]} Nxf6 {[%emt 0:00:31]} 28. b4 {[%emt 0:00:32]} Rc7 {[%emt 0:04:27]} 29. Kf2 {[%emt 0:03:55]} Nd5 {[%emt 0:02:47]} 30. a3 {[%emt 0:01:55]} Ne7 {[%emt 0:01:05]} 31. Bd3 {[%emt 0:03:47]} Bc8 {[%emt 0:06:18]} 32. Be4 {[%emt 0:03:07]} Nf5 {[%emt 0:01:38]} 33. Rd8 {[%emt 0:01:08]} Ba6 {[%emt 0:01:16]} 34. b5 {[%emt 0:00:09]} Bb7 {[%emt 0:00:53]} 35. Bxb7 {[%emt 0:01:27]} Rxb7 {[%emt 0:00:05]} 36. Nc6 {[%emt 0:00:05]} Rc7 {[%emt 0:02:15]} 37. Ke2 {[%emt 0:01:19]} Ne7 {[%emt 0:02:08]} 38. Ne5 {[%emt 0:01:11]} g5 {[%emt 0:02:44]} 39. Rd4 {[%emt 0:04:33]} gxf4 {[%emt 0:01:33]} 40. Rxf4 {[%emt 0:00:00]} Ng6 {[%emt 0:00:00]} 41. Rg4 {[%emt 0:00:40]} Kf6 {[%emt 0:00:39]} 42. Nc6 {[%emt 0:02:25]} Ne5 {[%emt 0:01:30]} 43. Nxe5 {[%emt 0:01:45]} Kxe5 {[%emt 0:00:11]} 44. Ke3 {[%emt 0:00:22]} Kd6 {[%emt 0:01:08]} 45. h4 {[%emt 0:06:55]} Rf7 {[%emt 0:06:06]} 46. Rg8 {[%emt 0:01:29]} e5 {[%emt 0:02:27]} 47. Rd8+ {[%emt 0:00:53]} Ke6 {[%emt 0:00:08]} 48. a4 {[%emt 0:02:56]} Rf4 {[%emt 0:01:44]} 49. Re8+ {[%emt 0:03:52]} Kd6 {[%emt 0:03:17]} 50. Kd3 {[%emt 0:05:32]} Rxh4 {[%emt 0:02:20]} 51. Ra8 {[%emt 0:00:07]} Kc5 {[%emt 0:01:20]} 52. Rxa7 {[%emt 0:00:05]} Rd4+ {[%emt 0:00:39]} 53. Ke3 {[%emt 0:00:45]} Rxc4 {[%emt 0:01:38]} 54. Rxh7 {[%emt 0:00:26]} Rxa4 {[%emt 0:00:06]} 55. Re7 {[%emt 0:00:05]} Ra3+ {[%emt 0:01:31]} 56. Ke4 {[%emt 0:00:21]} Kxb5 {[%emt 0:00:21]} 57. Rxe5+ {[%emt 0:00:05]} Kc4 {[%emt 0:00:25]} 58. Re8 {[%emt 0:00:07]} Rc3 {[%emt 0:06:51]} 59. Rc8+ {[%emt 0:01:00]} Kb4 {[%emt 0:00:08]} 60. Rb8 {[%emt 0:00:04]} b5 {[%emt 0:00:20]} 61. Kd4 {[%emt 0:00:04]} Rc4+ {[%emt 0:01:10]} 62. Kd3 {[%emt 0:00:24]} Rc5 {[%emt 0:00:26]} 63. Kd4 {[%emt 0:00:06]} Rh5 {[%emt 0:00:26]} 64. Kd3 {[%emt 0:00:27]} Kb3 {[%emt 0:00:14]} 65. Kd2 {[%emt 0:00:10]} Rc5 {[%emt 0:00:16]} 66. Rb7 {[%emt 0:02:52]} b4 {[%emt 0:00:40]} 67. Rb6 {[%emt 0:02:16]} Ka3 {[%emt 0:00:22]} 68. Ra6+ {[%emt 0:00:12]} Kb2 {[%emt 0:00:03]} 69. Rb6 {[%emt 0:00:24]} Rd5+ {[%emt 0:00:07]} 70. Ke3 {[%emt 0:00:12]} b3 {[%emt 0:00:04]} 71. Ke4 {[%emt 0:00:03]} Rd8 {[%emt 0:00:12]} 72. Ke3 {[%emt 0:00:29]} Kc2 {[%emt 0:00:14]} 73. Rb7 {[%emt 0:00:24]} Rc8 {[%emt 0:01:51]} 74. Rd7 {[%emt 0:00:57]} b2 {[%emt 0:00:37]} 0-1

[Event "ROU-chT Women Superliga 2018"]
[Site "Sovata"]
[Date "2018.11.25"]
[Round "1"]
[White "Popa, Catalina-Elena"]
[Black "Ciungan, Diana-Alexandra"]
[Result "0-1"]
[ECO "A45"]
[WhiteElo "1746"]
[BlackElo "1863"]
[Annotator "NA"]
[PlyCount "64"]
[EventDate "2018.11.24"]
[EventType "team-tourn"]
[EventCountry "ROU"]
[SourceTitle "playchess.com"]
[Source "ChessBase"]
[SourceQuality "1"]
[TimeControl "40/5400+30:1800+30"]

1. d4 {[%emt 0:00:00]} Nf6 {[%emt 0:00:00]} 2. Bf4 {[%emt 0:00:00]} e6 {[%emt 0:00:00]} 3. e3 {[%emt 0:00:04]} d5 {[%emt 0:00:01]} 4. Nd2 {[%emt 0:00:24]} c5 {[%emt 0:00:08]} 5. c3 {[%emt 0:00:05]} Nc6 {[%emt 0:00:05]} 6. Ngf3 {[%emt 0:01:09]} cxd4 {[%emt 0:00:05]} 7. exd4 {[%emt 0:00:26]} Nh5 {[%emt 0:00:36]} 8. Bg5 {[%emt 0:01:07]} f6 {[%emt 0:00:06]} 9. Be3 {[%emt 0:11:12]} g6 {[%emt 0:01:54]} 10. Bd3 {[%emt 0:08:40]} Qc7 {[%emt 0:07:24]} 11. O-O {[%emt 0:12:04]} f5 {[%emt 0:18:56]} 12. Nb3 {[%emt 0:09:26]} Bg7 {[%emt 0:06:50]} 13. Re1 {[%emt 0:07:38]} O-O {[%emt 0:01:45]} 14. Bf1 {[%emt 0:10:44]} b6 {[%emt 0:15:19]} 15. Nc1 {[%emt 0:09:22]} f4 {[%emt 0:23:00]} 16. Bd2 {[%emt 0:00:06]} e5 {[%emt 0:00:08]} 17. dxe5 {[%emt 0:00:58]} Nxe5 {[%emt 0:00:05]} 18. Nxe5 {[%emt 0:01:40]} Bxe5 {[%emt 0:01:59]} 19. Nd3 {[%emt 0:08:36]} Bd6 {[%emt 0:00:05]} 20. Qb3 {[%emt 0:01:43]} Bb7 {[%emt 0:02:03]} 21. Nb4 {[%emt 0:08:57]} Qf7 {[%emt 0:00:04]} 22. Be2 {[%emt 0:02:51]} Nf6 {[%emt 0:03:28]} 23. Bf3 {[%emt 0:03:08]} g5 {[%emt 0:04:58]} 24. h3 {[%emt 0:00:55]} Ne4 {[%emt 0:02:43]} 25. Rad1 {[%emt 0:00:23]} Bc5 {[%emt 0:00:18]} 26. Nd3 {[%emt 0:00:25]} Bd6 {[%emt 0:01:19]} 27. Qa4 {[%emt 0:00:31]} Rfe8 {[%emt 0:04:48]} 28. Qd4 {[%emt 0:00:31]} Bf8 {[%emt 0:01:36]} 29. Bxe4 {[%emt 0:00:43]} dxe4 {[%emt 0:00:39]} 30. Ne5 {[%emt 0:00:24]} Qe6 {[%emt 0:01:54]} 31. Nc4 {[%emt 0:00:43]} Rad8 {[%emt 0:00:20]} 32. Qe5 {[%emt 0:00:34]} Qxe5 {[%emt 0:00:33]} 0-1

[Event "ROU-chT Women Superliga 2018"]
[Site "Sovata"]
[Date "2018.11.25"]
[Round "1"]
[White "Patru, Alexandra-Ioana"]
[Black "Matasaru, Stephanie"]
[Result "1/2-1/2"]
[ECO "E69"]
[WhiteElo "1631"]
[BlackElo "1859"]
[Annotator "NA"]
[PlyCount "125"]
[EventDate "2018.11.24"]
[EventType "team-tourn"]
[EventCountry "ROU"]
[SourceTitle "playchess.com"]
[Source "ChessBase"]
[SourceQuality "1"]
[TimeControl "40/5400+30:1800+30"]

1. d4 {[%emt 0:00:00]} Nf6 {[%emt 0:00:00]} 2. Nf3 {[%emt 0:00:00]} g6 {[%emt 0:00:00]} 3. c4 {[%emt 0:00:32]} Bg7 {[%emt 0:00:00]} 4. g3 {[%emt 0:00:47]} O-O {[%emt 0:00:19]} 5. Bg2 {[%emt 0:00:28]} d6 {[%emt 0:00:20]} 6. O-O {[%emt 0:00:20]} Nbd7 {[%emt 0:00:29]} 7. Nc3 {[%emt 0:01:08]} e5 {[%emt 0:01:23]} 8. e4 {[%emt 0:00:09]} c6 {[%emt 0:00:16]} 9. h3 {[%emt 0:01:02]} Qa5 {[%emt 0:05:11]} 10. Re1 {[%emt 0:17:58]} exd4 {[%emt 0:03:02]} 11. Nxd4 {[%emt 0:00:07]} Ne5 {[%emt 0:01:27]} 12. Bf1 {[%emt 0:04:38]} Re8 {[%emt 0:03:46]} 13. f4 {[%emt 0:21:59]} Ned7 {[%emt 0:01:44]} 14. Kh2 {[%emt 0:03:53]} Qh5 {[%emt 0:09:48]} 15. Nf3 {[%emt 0:28:55]} Nc5 {[%emt 0:14:08]} 16. e5 {[%emt 0:04:41]} dxe5 {[%emt 0:04:08]} 17. Nxe5 {[%emt 0:01:10]} Qxd1 {[%emt 0:15:43]} 18. Rxd1 {[%emt 0:00:39]} Bf5 {[%emt 0:01:21]} 19. Be3 {[%emt 0:01:30]} Ncd7 {[%emt 0:03:44]} 20. Bd4 {[%emt 0:02:39]} c5 {[%emt 0:03:12]} 21. Nxd7 {[%emt 0:00:12]} cxd4 {[%emt 0:00:30]} 22. Nxf6+ {[%emt 0:00:07]} Bxf6 {[%emt 0:00:07]} 23. Nd5 {[%emt 0:00:12]} Bd8 {[%emt 0:06:42]} 24. Rxd4 {[%emt 0:00:22]} Kg7 {[%emt 0:03:45]} 25. g4 {[%emt 0:02:14]} Be6 {[%emt 0:00:52]} 26. Re1 {[%emt 0:00:13]} Ba5 {[%emt 0:01:45]} 27. b4 {[%emt 0:02:23]} Bxd5 {[%emt 0:01:35]} 28. Rxe8 {[%emt 0:00:16]} Rxe8 {[%emt 0:00:11]} 29. cxd5 {[%emt 0:00:16]} Bb6 {[%emt 0:00:43]} 30. Rc4 {[%emt 0:00:49]} Re1 {[%emt 0:00:45]} 31. Bg2 {[%emt 0:00:19]} Ra1 {[%emt 0:05:17]} 32. Rc2 {[%emt 0:03:20]} Rb1 {[%emt 0:01:31]} 33. Rc4 {[%emt 0:00:12]} Rd1 {[%emt 0:02:20]} 34. a4 {[%emt 0:00:21]} h5 {[%emt 0:02:14]} 35. Kg3 {[%emt 0:01:32]} h4+ {[%emt 0:01:35]} 36. Kf3 {[%emt 0:00:43]} Rd2 {[%emt 0:02:36]} 37. a5 {[%emt 0:00:29]} Bg1 {[%emt 0:02:02]} 38. Bh1 {[%emt 0:00:19]} Rxd5 {[%emt 0:01:25]} 39. Ke2 {[%emt 0:00:43]} Rd7 {[%emt 0:00:12]} 40. Rc1 {[%emt 0:00:00]} Bd4 {[%emt 0:00:00]} 41. Rd1 {[%emt 0:01:14]} Re7+ {[%emt 0:02:26]} 42. Kd3 {[%emt 0:00:15]} Bf2 {[%emt 0:00:58]} 43. Kc4 {[%emt 0:01:24]} Rc7+ {[%emt 0:06:01]} 44. Kb3 {[%emt 0:00:45]} Be3 {[%emt 0:01:27]} 45. Rf1 {[%emt 0:01:25]} Rd7 {[%emt 0:02:28]} 46. f5 {[%emt 0:02:37]} b6 {[%emt 0:02:25]} 47. axb6 {[%emt 0:00:27]} axb6 {[%emt 0:00:27]} 48. fxg6 {[%emt 0:00:35]} fxg6 {[%emt 0:00:26]} 49. Bc6 {[%emt 0:02:41]} Rd6 {[%emt 0:02:32]} 50. Bb5 {[%emt 0:00:30]} Bg5 {[%emt 0:00:58]} 51. Re1 {[%emt 0:01:25]} Rf6 {[%emt 0:01:22]} 52. Re7+ {[%emt 0:01:02]} Kh6 {[%emt 0:01:07]} 53. Be2 {[%emt 0:03:01]} Rd6 {[%emt 0:01:42]} 54. Re4 {[%emt 0:00:48]} Rc6 {[%emt 0:01:47]} 55. Bc4 {[%emt 0:01:08]} Rf6 {[%emt 0:00:32]} 56. Be2 {[%emt 0:02:43]} Bd2 {[%emt 0:01:22]} 57. g5+ {[%emt 0:02:53]} Bxg5 {[%emt 0:01:04]} 58. Bg4 {[%emt 0:00:14]} Rd6 {[%emt 0:01:14]} 59. Kc4 {[%emt 0:00:43]} Rf6 {[%emt 0:01:10]} 60. Kb5 {[%emt 0:00:42]} Bd2 {[%emt 0:00:46]} 61. Kc4 {[%emt 0:03:10]} Rf4 {[%emt 0:01:17]} 62. Rxf4 {[%emt 0:00:17]} Bxf4 {[%emt 0:00:06]} 63. b5 {[%emt 0:00:07]} 1/2-1/2

[Event "ROU-chT Women Superliga 2018"]
[Site "Sovata"]
[Date "2018.11.26"]
[Round "2"]
[White "Sgircea, Silvia-Raluca"]
[Black "Bucur, Denisa-Andreea"]
[Result "1-0"]
[ECO "A22"]
[WhiteElo "2259"]
[BlackElo "2012"]
[Annotator "NA"]
[PlyCount "111"]
[EventDate "2018.11.24"]
[EventType "team-tourn"]
[EventCountry "ROU"]
[SourceTitle "playchess.com"]
[Source "ChessBase"]
[SourceQuality "1"]
[TimeControl "40/5400+30:1800+30"]

1. c4 {[%emt 0:00:00]} e5 {[%emt 0:00:00]} 2. Nc3 {[%emt 0:00:00]} Nf6 {[%emt 0:00:00]} 3. g3 {[%emt 0:00:34]} c6 {[%emt 0:00:18]} 4. Nf3 {[%emt 0:01:07]} e4 {[%emt 0:00:39]} 5. Nd4 {[%emt 0:00:17]} Qb6 {[%emt 0:02:37]} 6. Nc2 {[%emt 0:05:32] A23: English Opening: 1...e5 2 Nc3 Nf6 3 g3 c6} Bc5 {[%emt 0:11:10]} (6... d5 7. Bg2 dxc4 8. O-O Be6 9. Nxe4 Nxe4 10. Bxe4 Nd7 11. Bg2 h5 12. d4 cxd3 13. Qxd3 O-O-O {1-0 (51) Jobava,B (2713)-Mastrovasilis,D (2580) Minsk 2017 CBM 179 [Moradiabadi,E]}) 7. Ne3 {[%emt 0:04:00]} Bxe3 {[%emt 0:09:28]} (7... O-O $11) 8. dxe3 {[%emt 0:02:38]} O-O {[%emt 0:01:17]} 9. Bg2 {[%emt 0:04:18]} Re8 {[%emt 0:01:15]} 10. O-O {[%emt 0:00:37]} Qc5 $146 {[%emt 0:05:46]} ({Predecessor:} 10... Qb4 11. Qd4 d5 12. cxd5 Qxd4 13. exd4 cxd5 {1-0 (44) Kalinin,A-Popkov,E USSR 1989}) 11. Qb3 {[%emt 0:25:59]} Na6 {[%emt 0:04:22]} 12. Bd2 {[%emt 0:02:34]} Nc7 {[%emt 0:04:52]} 13. Rac1 {[%emt 0:04:03]} Qh5 {[%emt 0:22:23]} 14. Qc2 {[%emt 0:08:07]} Qg6 {[%emt 0:04:36]} 15. Rfd1 {[%emt 0:18:18]} d5 {[%emt 0:04:16]} 16. cxd5 {[%emt 0:00:12]} Ncxd5 {[%emt 0:00:08]} 17. Nxd5 {[%emt 0:00:09]} Nxd5 {[%emt 0:01:06]} 18. b4 {[%emt 0:00:27]} Bf5 {[%emt 0:08:09]} 19. b5 {[%emt 0:03:51]} Rac8 {[%emt 0:09:28]} 20. Qa4 {[%emt 0:02:31]} cxb5 {[%emt 0:02:18]} 21. Qxb5 {[%emt 0:02:44]} Nb6 {[%emt 0:01:08]} 22. Ba5 {[%emt 0:00:32]} Bd7 {[%emt 0:03:37]} 23. Qb4 {[%emt 0:01:03]} Rxc1 {[%emt 0:01:02]} 24. Rxc1 {[%emt 0:00:06]} Bc6 {[%emt 0:00:30]} 25. Bxb6 {[%emt 0:00:59]} axb6 {[%emt 0:00:01]} 26. Qxb6 {[%emt 0:00:11]} Qh5 {[%emt 0:01:16]} 27. Qd4 {[%emt 0:04:18]} h6 {[%emt 0:01:01]} 28. Rc2 {[%emt 0:00:17]} Qa5 {[%emt 0:00:22]} 29. Qd2 {[%emt 0:03:54]} Qb5 {[%emt 0:00:33]} 30. Bh3 {[%emt 0:01:36]} Ra8 {[%emt 0:00:36]} 31. Rb2 {[%emt 0:00:50]} Qe5 {[%emt 0:00:26]} 32. Kg2 {[%emt 0:00:54]} Qe7 {[%emt 0:00:35]} 33. Qc3 {[%emt 0:02:18]} Rd8 {[%emt 0:00:25]} 34. Rd2 {[%emt 0:00:44]} Ra8 {[%emt 0:00:40]} 35. Qb3 {[%emt 0:00:25]} Ra3 {[%emt 0:00:30]} 36. Qd1 {[%emt 0:00:15]} Ra8 {[%emt 0:00:08]} 37. Bd7 {[%emt 0:00:24]} Bxd7 {[%emt 0:00:53]} 38. Rxd7 {[%emt 0:00:02]} Qe6 {[%emt 0:00:27]} 39. Rd8+ {[%emt 0:02:00]} ({Better is} 39. a4) 39... Rxd8 {[%emt 0:00:04]} 40. Qxd8+ {[%emt 0:00:00]} Kh7 {[%emt 0:00:00]} 41. a4 {[%emt 0:01:19]} Qc4 {[%emt 0:06:33]} 42. Qd4 {[%emt 0:00:57]} Qc2 {[%emt 0:01:44]} 43. a5 {[%emt 0:02:38]} Qc6 {[%emt 0:02:10]} 44. g4 {[%emt 0:01:18]} Qe6 {[%emt 0:01:14]} 45. Kg3 {[%emt 0:03:53]} f5 {[%emt 0:05:44]} 46. h3 {[%emt 0:01:04]} fxg4 {[%emt 0:00:35]} 47. hxg4 {[%emt 0:00:02]} h5 {[%emt 0:03:32]} (47... Qe7 {might work better.} 48. Qd5 Qc7+ 49. Kg2 Qe7) 48. f3 {[%emt 0:01:46]} exf3 {[%emt 0:02:04]} 49. exf3 {[%emt 0:00:09]} Qa6 {[%emt 0:05:50]} 50. Qe4+ {[%emt 0:01:39]} Kh6 {[%emt 0:01:01]} 51. Qf4+ {[%emt 0:00:52]} Kh7 {[%emt 0:00:31]} 52. Qf5+ $18 {[%emt 0:00:42]} Kg8 {[%emt 0:01:55]} 53. Qd5+ {[%emt 0:01:48]} Kf8 {[%emt 0:00:48]} 54. gxh5 {[%emt 0:02:39]} Qf1 {[%emt 0:00:47]} 55. Kf4 {[%emt 0:00:43]} Qh3 {[%emt 0:00:27]} 56. Qf5+ {[%emt 0:00:06]} 1-0